bitfinex/quotes_BTCUSD_20241211
["timestamp","ask_amount","ask_price","bid_price","bid_amount"]
[1733939756493,0.65139261,100190.0,100180.0,0.0151578]
[1733939757120,0.50139261,100190.0,100180.0,0.0151578]
[1733939757325,0.65139261,100190.0,100180.0,0.0151578]
[1733939757534,0.15177261,100190.0,100180.0,0.0151578]
[1733939757738,0.12877261,100190.0,100180.0,0.0151578]
[1733939758419,0.12877261,100190.0,100180.0,0.1149778]
[1733939759059,0.12877261,100190.0,100180.0,0.0151578]
[1733939759464,0.12077261,100190.0,100180.0,0.0151578]
[1733939759717,0.63070453,100190.0,100180.0,0.0151578]
[1733939759899,0.34239261,100190.0,100180.0,0.0151578]
[1733939760349,0.48870453,100190.0,100180.0,0.0151578]
[1733939760552,0.62970453,100190.0,100180.0,0.0151578]
[1733939761019,0.63870453,100190.0,100180.0,0.0151578]
[1733939761427,0.63070453,100190.0,100180.0,0.0151578]
[1733939761790,0.63570453,100190.0,100180.0,0.0151578]
[1733939762212,0.48070453,100190.0,100180.0,0.0151578]
[1733939762622,0.48870453,100190.0,100180.0,0.0151578]
[1733939763822,0.017,100190.0,100180.0,0.1941778]
[1733939764061,0.017,100190.0,100180.0,0.62989817]
[1733939764563,0.11822002,100220.0,100210.0,0.24979]
[1733939766024,0.12122002,100220.0,100210.0,0.24979]
[1733939766232,0.0030551,100220.0,100210.0,0.24979]
[1733939766437,0.11822002,100220.0,100210.0,0.24979]
[1733939766845,5.51e-05,100220.0,100210.0,0.24979]
[1733939767256,0.0020551,100220.0,100210.0,0.24979]
[1733939767837,0.10236355,100220.0,100210.0,0.15]
[1733939768056,0.12336355,100220.0,100210.0,0.15]
[1733939768236,0.66580647,100220.0,100210.0,0.001]
[1733939768461,0.46623647,100220.0,100210.0,0.001]
[1733939768663,0.46923647,100220.0,100210.0,0.001]
[1733939769262,0.13236355,100220.0,100210.0,0.001]
[1733939771074,0.32292355,100220.0,100200.0,0.297895]
[1733939771313,0.11816492,100210.0,100200.0,0.297895]
[1733939771432,0.11816492,100210.0,100200.0,0.397688]
[1733939772900,0.12416492,100210.0,100200.0,0.397688]
[1733939774544,0.12416492,100210.0,100200.0,0.297893]
[1733939774755,0.006,100210.0,100200.0,0.297893]
[1733939774977,0.006,100210.0,100200.0,0.15]
[1733939775184,0.12930845,100210.0,100200.0,0.15]
[1733939775595,0.46620937,100210.0,100190.0,0.1344118]
[1733939775807,0.66579937,100210.0,100190.0,0.195]
[1733939776019,0.52848745,100210.0,100190.0,0.195]
[1733939776231,0.52848745,100210.0,100190.0,0.24981]
[1733939776432,0.52848745,100210.0,100190.0,0.25010385]
[1733939776634,0.66079937,100210.0,100190.0,0.15029385]
[1733939776838,0.66079937,100210.0,100190.0,0.144849]
[1733939777039,0.66579937,100210.0,100190.0,0.144849]
[1733939777243,0.46120937,100210.0,100190.0,0.144849]
[1733939777456,0.12430845,100210.0,100190.0,0.244659]
[1733939777652,0.11816492,100200.0,100190.0,0.4338758]
[1733939777863,0.13230845,100210.0,100190.0,0.4338688]
[1733939778066,0.11816492,100200.0,100190.0,0.4338668]
[1733939778272,0.13430845,100210.0,100190.0,0.4338668]
[1733939778720,0.13230845,100210.0,100190.0,0.5336718]
[1733939779073,0.12730845,100210.0,100190.0,0.53371719]
[1733939779277,0.005,100200.0,100190.0,0.43391219]
[1733939779407,0.11816492,100200.0,100190.0,0.43391219]
[1733939779608,0.11816492,100200.0,100190.0,0.56809798]
[1733939780427,0.12316492,100200.0,100190.0,0.56809798]
[1733939781235,0.12516492,100200.0,100190.0,0.74701237]
[1733939781435,0.007,100200.0,100190.0,0.88432429]
[1733939781663,0.007,100200.0,100190.0,0.74701237]
[1733939781866,0.12516492,100200.0,100190.0,0.97065536]
[1733939783504,0.12516492,100200.0,100190.0,0.74726093]
[1733939785018,0.007,100200.0,100190.0,0.74726093]
[1733939785222,0.007,100200.0,100190.0,0.22407492]
[1733939785403,0.12516492,100200.0,100190.0,0.46119684]
[1733939785605,0.12516492,100200.0,100190.0,0.6402217]
[1733939786099,0.12516492,100200.0,100190.0,0.86400278]
[1733939786531,0.12516492,100200.0,100190.0,1.01400278]
[1733939786762,0.12016492,100200.0,100190.0,1.01400278]
[1733939787142,0.007,100200.0,100190.0,1.11431123]
[1733939787587,0.005,100200.0,100190.0,1.23921123]
[1733939787787,0.007,100200.0,100190.0,1.23921123]
[1733939787916,0.007,100200.0,100190.0,1.2392095]
[1733939788324,0.11816492,100210.0,100200.0,0.2498]
[1733939789190,0.11816492,100210.0,100200.0,0.0998]
[1733939789390,0.12016492,100210.0,100200.0,0.0998]
[1733939789761,0.12516492,100210.0,100200.0,0.0998]
[1733939789939,0.12516492,100210.0,100200.0,0.23711192]
[1733939790330,0.12516492,100210.0,100200.0,0.0998]
[1733939791606,0.12516492,100210.0,100200.0,0.10009394]
[1733939792723,0.12486492,100210.0,100200.0,0.10009394]
[1733939793303,0.0067,100210.0,100200.0,0.48771431]
[1733939793480,0.0067,100210.0,100200.0,0.71453693]
[1733939793679,0.0067,100210.0,100200.0,0.84473693]
[1733939793902,0.0067,100210.0,100200.0,0.97900557]
[1733939794109,0.0067,100210.0,100200.0,0.75522623]
[1733939794473,0.005,100210.0,100200.0,0.75522623]
[1733939794608,5.51e-05,100220.0,100210.0,0.24979]
[1733939794811,5.51e-05,100220.0,100210.0,0.48770431]
[1733939795383,5.51e-05,100220.0,100210.0,0.61100431]
[1733939795591,0.11822002,100220.0,100210.0,0.29838394]
[1733939795787,5.51e-05,100220.0,100210.0,0.10008394]
[1733939795986,0.0010551,100220.0,100210.0,0.15029394]
[1733939796139,0.0010551,100220.0,100210.0,0.00029394]
[1733939796545,0.32392355,100220.0,100210.0,0.00029394]
[1733939797355,0.69393547,100220.0,100210.0,0.00029394]
[1733939797556,0.92783223,100220.0,100210.0,0.00029394]
[1733939797761,0.92683223,100220.0,100210.0,0.00029394]
[1733939797977,0.93383223,100220.0,100210.0,0.00029394]
[1733939798157,0.92883223,100220.0,100210.0,0.00029394]
[1733939798375,0.92683223,100220.0,100210.0,0.00029394]
[1733939798569,0.93583223,100220.0,100210.0,0.00029394]
[1733939798771,0.76712355,100220.0,100210.0,0.00129394]
[1733939799257,0.85752104,100220.0,100210.0,0.00029394]
[1733939799458,0.85752104,100220.0,100210.0,0.00129394]
[1733939799459,0.76343547,100220.0,100210.0,0.00129394]
[1733939799908,0.79795691,100220.0,100210.0,0.00129394]
[1733939800766,0.79195691,100220.0,100210.0,0.00029394]
[1733939800977,0.77395691,100220.0,100210.0,0.00029394]
[1733939801175,0.78295691,100220.0,100210.0,0.00029394]
[1733939801375,0.80301808,100220.0,100210.0,0.00129394]
[1733939801731,0.94033,100220.0,100210.0,0.00129394]
[1733939801901,0.0816,100190.0,100180.0,0.0151578]
[1733939802106,0.54184037,100190.0,100180.0,0.0151578]
[1733939803864,0.84184037,100190.0,100180.0,0.0151578]
[1733939804363,0.85284037,100190.0,100180.0,0.0151578]
[1733939804579,0.69484037,100190.0,100180.0,0.0151578]
[1733939804747,0.73536181,100190.0,100180.0,0.0151578]
[1733939804915,0.74036181,100190.0,100180.0,0.0151578]
[1733939805724,0.77326896,100190.0,100180.0,0.0151578]
[1733939806444,0.79285052,100190.0,100180.0,0.0151578]
[1733939806884,0.72542193,100190.0,100180.0,0.0151578]
[1733939807060,0.71642193,100190.0,100180.0,0.0151578]
[1733939807375,0.72042193,100190.0,100180.0,0.0151578]
[1733939807530,0.71942193,100190.0,100180.0,0.0151578]
[1733939808071,0.72042193,100190.0,100180.0,0.0151578]
[1733939808432,0.7396538,100190.0,100180.0,0.0151578]
[1733939810227,0.7226538,100190.0,100180.0,0.0151578]
[1733939810449,0.7316538,100190.0,100180.0,0.0151578]
[1733939810651,0.7406538,100190.0,100180.0,0.0151578]
[1733939811141,0.7226538,100190.0,100180.0,0.0151578]
[1733939811344,0.7316538,100190.0,100180.0,0.0151578]
[1733939811569,0.7406538,100190.0,100180.0,0.0151578]
[1733939815178,0.8906538,100190.0,100180.0,0.0151578]
[1733939815403,0.7406538,100190.0,100180.0,0.0151578]
[1733939816184,1.0406538,100190.0,100180.0,0.0151578]
[1733939816408,0.7406538,100190.0,100180.0,0.0151578]
[1733939819395,0.8906538,100190.0,100180.0,0.0151578]
[1733939820063,0.8906538,100190.0,100130.0,0.17018703]
[1733939820064,0.19974,100130.0,100080.0,0.199825]
[1733939820262,0.11816492,100090.0,100070.0,0.59909291]
[1733939820463,0.12330845,100090.0,100070.0,0.099922]
[1733939820661,0.44459722,100050.0,100040.0,0.18183508]
[1733939820873,0.28509722,100050.0,100040.0,0.53908223]
[1733939821251,0.15,100090.0,100070.0,0.199851]
[1733939821453,0.15,100080.0,100070.0,0.099922]
[1733939821668,0.159,100090.0,100070.0,0.199846]
[1733939821878,0.159,100090.0,100070.0,0.29977]
[1733939822056,0.38762037,100080.0,100060.0,0.199872]
[1733939822260,0.23762037,100080.0,100060.0,0.199867]
[1733939822462,0.10030845,100080.0,100060.0,0.199866]
[1733939822765,0.10030845,100080.0,100060.0,0.299805]
[1733939822971,0.96186592,100090.0,100060.0,0.099933]
[1733939822972,0.15,100070.0,100060.0,0.099933]
[1733939823177,0.3049,100050.0,100040.0,0.00155278]
[1733939823374,0.74202037,100050.0,100040.0,0.00055278]
[1733939823707,0.89202037,100050.0,100040.0,0.00055278]
[1733939823909,0.45470845,100050.0,100040.0,0.00055278]
[1733939824037,0.45370845,100050.0,100040.0,0.00055278]
[1733939824259,0.14980845,100050.0,100040.0,0.10051278]
[1733939824469,0.202851,100080.0,100050.0,0.199886]
[1733939824677,0.202851,100080.0,100060.0,0.09994]
[1733939824678,0.15,100070.0,100060.0,0.09994]
[1733939825112,0.1996,100090.0,100070.0,0.099922]
[1733939825319,0.1504,100090.0,100070.0,0.20085113]
[1733939825520,0.1504,100090.0,100080.0,0.09992]
[1733939825937,0.10070845,100090.0,100080.0,0.09992]
[1733939826147,0.10070845,100090.0,100080.0,0.41410106]
[1733939826317,0.10570845,100090.0,100080.0,0.09992]
[1733939826747,0.10570845,100090.0,100080.0,0.10047278]
[1733939827383,0.10970845,100090.0,100080.0,0.10047278]
[1733939827528,0.47282954,100090.0,100080.0,0.00055278]
[1733939827730,0.13270845,100090.0,100080.0,0.10047278]
[1733939828306,0.10970845,100090.0,100080.0,0.10047278]
[1733939828740,0.11270845,100090.0,100080.0,0.10047278]
[1733939829839,0.11270845,100090.0,100080.0,0.00055278]
[1733939830055,0.13570845,100090.0,100080.0,0.00055278]
[1733939830277,0.11270845,100090.0,100080.0,0.10047278]
[1733939831200,0.1624,100090.0,100080.0,0.10047278]
[1733939831404,0.1624,100090.0,100080.0,0.24077387]
[1733939831611,0.0124,100090.0,100080.0,0.39077387]
[1733939832284,0.0124,100090.0,100080.0,0.49108232]
[1733939832491,0.0094,100090.0,100080.0,0.49108232]
[1733939832713,0.0004,100090.0,100080.0,0.49108232]
[1733939832920,0.0014,100090.0,100080.0,0.49108232]
[1733939833341,0.0044,100090.0,100080.0,0.49108232]
[1733939833977,0.0044,100090.0,100080.0,0.49094686]
[1733939834596,1e-06,100090.0,100080.0,0.63111249]
[1733939834821,0.0004,100110.0,100080.0,0.49094686]
[1733939835017,0.0004,100110.0,100100.0,0.29016563]
[1733939835237,0.1242,100060.0,100040.0,0.099954]
[1733939835450,0.1013073,100050.0,100040.0,0.00016569]
[1733939835673,0.1243073,100050.0,100040.0,0.00016569]
[1733939836515,0.1243073,100050.0,100040.0,0.10012569]
[1733939836726,0.3242073,100050.0,100040.0,0.00016569]
[1733939836969,0.32320845,100050.0,100040.0,0.00016569]
[1733939837183,0.32420845,100050.0,100040.0,0.00016569]
[1733939837398,0.12430845,100050.0,100040.0,0.00016569]
[1733939837615,0.1253073,100050.0,100040.0,0.10012569]
[1733939837832,0.1243073,100050.0,100040.0,0.10012569]
[1733939838048,0.3242073,100050.0,100040.0,0.00016569]
[1733939838256,0.13130845,100050.0,100040.0,0.10012569]
[1733939838465,0.1343073,100050.0,100040.0,0.10012569]
[1733939839118,0.3322073,100050.0,100040.0,0.00016569]
[1733939839361,0.13330845,100050.0,100040.0,0.10012569]
[1733939839577,0.1343073,100050.0,100040.0,0.10012569]
[1733939840227,0.1343073,100050.0,100040.0,0.00016569]
[1733939840485,0.62460629,100050.0,100040.0,0.00016569]
[1733939840745,0.62460629,100050.0,99999.0,0.100001]
[1733939840746,0.15,100000.0,99999.0,0.100001]
[1733939840971,0.0821,100020.0,99999.0,0.00055119]
[1733939841190,0.10609885,100020.0,100010.0,0.09999]
[1733939841397,0.07299885,100010.0,100000.0,0.22234118]
[1733939841615,0.07299885,100010.0,99999.0,0.17842413]
[1733939841616,0.5232893,100010.0,99999.0,0.00055119]
[1733939841835,0.60030845,100000.0,99999.0,0.00055119]
[1733939842055,0.67940845,100000.0,99999.0,0.00055119]
[1733939843394,0.023,99970.0,99953.0,0.08893647]
[1733939843614,0.1013073,99969.0,99967.0,0.00016579]
[1733939844061,0.00099885,99969.0,99967.0,0.00016579]
[1733939844266,0.023,99990.0,99967.0,0.00016579]
[1733939844491,0.023,99990.0,99968.0,0.100032]
[1733939844492,0.023,99980.0,99968.0,0.100032]
[1733939844709,0.00099885,99979.0,99978.0,0.100021]
[1733939844932,0.00099885,99979.0,99967.0,0.00016579]
[1733939844933,0.049,100010.0,99969.0,0.100031]
[1733939845147,0.0807,100020.0,100010.0,0.09999]
[1733939845349,0.1820073,100020.0,100010.0,0.09999]
[1733939846233,0.75400546,100020.0,99994.0,0.100005]
[1733939846476,0.023,100000.0,99980.0,0.15]
[1733939846694,0.10030845,99999.0,99995.0,0.100004]
[1733939846896,0.10030845,99999.0,99995.0,0.200008]
[1733939847320,0.00099885,99998.0,99995.0,0.200008]
[1733939847525,0.10030845,99997.0,99995.0,0.200008]
[1733939849509,0.10330845,99997.0,99995.0,0.200008]
[1733939849712,0.10030845,99997.0,99995.0,0.200008]
[1733939849928,0.10030845,99997.0,99995.0,0.100004]
[1733939850140,0.00099885,99996.0,99994.0,0.015]
[1733939850374,0.10030845,99995.0,99994.0,0.015]
[1733939850584,0.1013073,99995.0,99994.0,0.015]
[1733939851435,0.3013173,99995.0,99994.0,0.015]
[1733939851652,0.30031845,99995.0,99994.0,0.015]
[1733939851866,0.10030845,99995.0,99994.0,0.015]
[1733939852518,0.10330845,99995.0,99994.0,0.015]
[1733939852724,0.30331845,99995.0,99994.0,0.01519721]
[1733939852943,0.31231845,99995.0,99994.0,0.01519721]
[1733939853149,0.10330845,99995.0,99994.0,0.01519721]
[1733939853366,0.3043173,99995.0,99994.0,0.01019721]
[1733939853576,0.30631845,99995.0,99994.0,0.01019721]
[1733939853778,0.30331845,99995.0,99994.0,0.01019721]
[1733939853987,0.30631845,99995.0,99994.0,0.01019721]
[1733939854660,0.30331845,99995.0,99994.0,0.01019721]
[1733939854868,0.30631845,99995.0,99994.0,0.01019721]
[1733939855274,0.30031845,99995.0,99994.0,0.01019721]
[1733939855501,0.30831845,99995.0,99994.0,0.01019721]
[1733939855712,0.11130845,99995.0,99994.0,0.01019721]
[1733939855968,0.1123073,99995.0,99994.0,0.01019721]
[1733939856184,0.1123073,99995.0,99994.0,0.09932204]
[1733939856403,0.3043173,99995.0,99994.0,0.09934156]
[1733939856626,0.30331845,99995.0,99994.0,0.01019721]
[1733939856835,0.31131845,99995.0,99994.0,0.01019721]
[1733939857045,0.30031845,99995.0,99994.0,0.01019721]
[1733939857256,0.30931845,99995.0,99994.0,0.01019721]
[1733939857888,0.30631845,99995.0,99994.0,0.01019721]
[1733939858104,0.30831845,99995.0,99994.0,0.01019721]
[1733939858518,0.30231845,99995.0,99994.0,0.01019721]
[1733939858946,0.30931845,99995.0,99994.0,0.01019721]
[1733939859156,0.30231845,99995.0,99994.0,0.01019721]
[1733939859365,0.31131845,99995.0,99994.0,0.01019721]
[1733939859799,0.30231845,99995.0,99994.0,0.01019721]
[1733939859999,0.30031845,99995.0,99994.0,0.01019721]
[1733939860209,0.30931845,99995.0,99994.0,0.01019721]
[1733939860420,0.11330845,99995.0,99994.0,0.01019721]
[1733939860628,0.1143073,99995.0,99994.0,0.01019721]
[1733939860837,0.1103073,99995.0,99994.0,0.01019721]
[1733939861044,0.1103073,99995.0,99994.0,0.09931942]
[1733939861232,0.11230845,99995.0,99994.0,0.01019721]
[1733939861436,0.11230845,99995.0,99994.0,0.11020321]
[1733939861642,0.1183073,99995.0,99994.0,0.11020321]
[1733939862068,0.1213073,99995.0,99994.0,0.11020321]
[1733939862315,0.00900515,99995.0,99994.0,0.11020321]
[1733939862964,0.1093136,99995.0,99994.0,0.01019721]
[1733939863662,0.10030845,99995.0,99994.0,0.01019721]
[1733939864539,0.10330845,99995.0,99994.0,0.01019721]
[1733939865162,0.10030845,99995.0,99994.0,0.01019721]
[1733939865390,0.10530845,99995.0,99994.0,0.01019721]
[1733939865818,0.11230845,99995.0,99994.0,0.01119721]
[1733939866044,0.10530845,99995.0,99994.0,0.01019721]
[1733939866914,0.10930845,99995.0,99994.0,0.01019721]
[1733939867802,0.10530845,99995.0,99994.0,0.01019723]
[1733939868014,0.11130845,99995.0,99994.0,0.01119723]
[1733939868225,0.11330845,99995.0,99994.0,0.01119723]
[1733939868428,0.10830845,99995.0,99994.0,0.01019723]
[1733939868658,0.11730845,99995.0,99994.0,0.01119723]
[1733939868862,0.10230845,99995.0,99994.0,0.01019723]
[1733939869709,0.10030845,99995.0,99994.0,0.01019723]
[1733939869962,0.11030845,99995.0,99994.0,0.01119723]
[1733939870378,0.10630845,99995.0,99994.0,0.01119723]
[1733939870810,0.11030845,99995.0,99994.0,0.01119723]
[1733939871249,0.10030845,99995.0,99994.0,0.01019723]
[1733939871454,0.11330845,99995.0,99994.0,0.01119723]
[1733939871867,0.10530845,99995.0,99994.0,0.01019723]
[1733939872087,0.11330845,99995.0,99994.0,0.01119723]
[1733939872302,0.10530845,99995.0,99994.0,0.01019723]
[1733939872739,0.10131043,99995.0,99994.0,0.01119724]
[1733939872944,0.10030845,99995.0,99994.0,0.01459673]
[1733939873149,0.10030845,99995.0,99994.0,0.01019724]
[1733939873591,0.10430845,99995.0,99994.0,0.01019724]
[1733939874022,0.10030845,99995.0,99994.0,0.01019724]
[1733939874242,0.10630845,99995.0,99994.0,0.01119724]
[1733939874453,0.11030845,99995.0,99994.0,0.01119724]
[1733939875730,0.12930845,99995.0,99994.0,0.01559673]
[1733939876136,0.13230845,99995.0,99994.0,0.01559673]
[1733939877177,0.10630845,99995.0,99994.0,0.01559673]
[1733939877635,0.10530845,99995.0,99994.0,0.01559673]
[1733939877837,0.014,99995.0,99994.0,0.01559673]
[1733939878238,0.005,99995.0,99994.0,0.41059915]
[1733939878443,0.005,99995.0,99994.0,0.01559673]
[1733939878666,0.005,99995.0,99994.0,0.01459673]
[1733939878893,0.006,99995.0,99994.0,0.01459673]
[1733939879102,0.13230845,99995.0,99994.0,0.01459673]
[1733939879334,0.13230845,99995.0,99994.0,0.19325485]
[1733939879335,0.12630845,99995.0,99994.0,0.19325485]
[1733939879553,0.12330845,99995.0,99994.0,0.19325485]
[1733939879768,0.12330845,99995.0,99994.0,0.01459673]
[1733939879968,0.12530845,99995.0,99994.0,0.01459674]
[1733939880182,0.12530845,99995.0,99994.0,0.40959916]
[1733939880392,0.12530845,99995.0,99994.0,0.01459674]
[1733939880601,0.13130845,99995.0,99994.0,0.01459674]
[1733939880816,0.12530845,99995.0,99994.0,0.01459674]
[1733939881036,0.12530845,99995.0,99994.0,0.01019725]
[1733939881260,0.13030845,99995.0,99994.0,0.19350609]
[1733939881513,0.13030845,99995.0,99994.0,0.01459674]
[1733939882384,0.373012,99994.0,99993.0,0.17893529]
[1733939882601,0.3995,99987.0,99986.0,0.22377649]
[1733939882822,0.3995,99987.0,99978.0,0.26853179]
[1733939882823,0.023,99979.0,99978.0,0.26853179]
[1733939883033,0.200044,99978.0,99975.0,0.26853179]
[1733939883255,0.023,99973.0,99970.0,0.26869758]
[1733939883463,0.30036445,99972.0,99970.0,0.26869758]
[1733939883689,0.023,99971.0,99970.0,0.00016579]
[1733939883900,0.15,99938.0,99929.0,0.07964618]
[1733939884108,0.223136,99932.0,99929.0,0.07964618]
[1733939884318,0.223136,99932.0,99931.0,0.00056508]
[1733939884319,0.32344445,99932.0,99931.0,0.00056508]
[1733939886040,0.200116,99942.0,99931.0,0.00056508]
[1733939886263,0.01069921,99950.0,99931.0,0.00056508]
[1733939886479,0.200084,99958.0,99933.0,0.100067]
[1733939886713,0.009,99932.0,99931.0,0.00056508]
[1733939887126,0.005,99932.0,99931.0,0.00056508]
[1733939887604,0.10530845,99932.0,99931.0,0.00056508]
[1733939887840,0.12830845,99932.0,99931.0,0.00056508]
[1733939888053,0.13130845,99932.0,99931.0,0.00056508]
[1733939888472,0.12630845,99932.0,99931.0,0.00056508]
[1733939888682,0.27630845,99932.0,99931.0,0.00056508]
[1733939888895,0.27730845,99932.0,99931.0,0.00056508]
[1733939889324,0.12630845,99932.0,99931.0,0.00056508]
[1733939889751,0.12830845,99932.0,99931.0,0.00056508]
[1733939889930,0.13030845,99932.0,99931.0,0.00056508]
[1733939890141,0.12530845,99932.0,99931.0,0.00056508]
[1733939890574,0.12830845,99932.0,99931.0,0.00056508]
[1733939890783,0.10530845,99932.0,99931.0,0.00056508]
[1733939891670,0.10930845,99932.0,99931.0,0.00056508]
[1733939892086,0.11530845,99932.0,99931.0,0.00056508]
[1733939892508,0.13830845,99932.0,99931.0,0.00056508]
[1733939893184,0.13230845,99932.0,99931.0,0.00056508]
[1733939893387,0.12730845,99932.0,99931.0,0.00056508]
[1733939894027,0.13530845,99932.0,99931.0,0.00056508]
[1733939894276,0.12730845,99932.0,99931.0,0.00056508]
[1733939894689,0.13530845,99932.0,99931.0,0.00056508]
[1733939894896,0.1510018,99932.0,99931.0,0.00056508]
[1733939895107,0.1550018,99932.0,99931.0,0.00056508]
[1733939895325,0.1470018,99932.0,99931.0,0.00056508]
[1733939895531,0.11002325,99932.0,99931.0,0.00056508]
[1733939895732,0.10602325,99932.0,99931.0,0.00056508]
[1733939895940,0.11102325,99932.0,99931.0,0.00056508]
[1733939896773,0.11902325,99932.0,99931.0,0.00056508]
[1733939896982,0.11102325,99932.0,99931.0,0.00056508]
[1733939897186,0.12142809,99932.0,99931.0,0.00056508]
[1733939897391,0.13042809,99932.0,99931.0,0.00056508]
[1733939897804,0.15342809,99932.0,99931.0,0.00056508]
[1733939898237,0.523138,99931.0,99930.0,9.8e-07]
[1733939898441,0.62344645,99931.0,99930.0,5.609e-05]
[1733939899498,0.63044645,99931.0,99930.0,5.609e-05]
[1733939900782,0.63944645,99931.0,99930.0,5.609e-05]
[1733939901404,0.62344645,99931.0,99930.0,5.609e-05]
[1733939901847,0.48944645,99931.0,99930.0,5.609e-05]
[1733939902047,0.63944645,99931.0,99930.0,5.609e-05]
[1733939902968,0.63244645,99931.0,99930.0,5.609e-05]
[1733939903123,0.62344645,99931.0,99930.0,5.609e-05]
[1733939903280,0.63044645,99931.0,99930.0,5.609e-05]
[1733939903487,0.63944645,99931.0,99930.0,5.609e-05]
[1733939903688,0.173,99930.0,99929.0,0.07964618]
[1733939903890,0.42330845,99930.0,99929.0,0.07964618]
[1733939904099,0.27330845,99930.0,99929.0,0.07964618]
[1733939904305,0.42330845,99930.0,99929.0,0.07964618]
[1733939904809,0.43030845,99930.0,99929.0,0.07964618]
[1733939905260,0.28930845,99930.0,99929.0,0.07964618]
[1733939908985,0.29498856,99930.0,99929.0,0.07964618]
[1733939909196,0.28930845,99930.0,99929.0,0.07964618]
[1733939909434,0.28930845,99930.0,99929.0,0.01820726]
[1733939910169,0.4003,99925.0,99920.0,8.6e-05]
[1733939910370,0.023,99923.0,99920.0,8.6e-05]
[1733939910571,0.200158,99921.0,99920.0,8.6e-05]
[1733939910770,0.32346645,99921.0,99920.0,8.6e-05]
[1733939912377,0.32946645,99921.0,99920.0,8.6e-05]
[1733939913310,0.33846645,99921.0,99920.0,8.6e-05]
[1733939914520,0.34414646,99921.0,99920.0,8.6e-05]
[1733939915061,0.3532319,99921.0,99920.0,8.6e-05]
[1733939915290,0.200168,99916.0,99915.0,0.2740186]
[1733939915465,0.200188,99907.0,99890.0,0.0500859]
[1733939915695,0.200198,99901.0,99900.0,0.04231667]
[1733939915889,0.30618284,99901.0,99900.0,0.04231667]
[1733939916085,0.31526018,99901.0,99900.0,0.04231667]
[1733939916682,0.31526018,99901.0,99857.0,0.08632241]
[1733939916683,0.50394477,99901.0,99857.0,0.08632241]
[1733939916882,0.15,99850.0,99814.0,0.09032814]
[1733939917083,0.200332,99834.0,99814.0,0.09032814]
[1733939917238,0.200336,99832.0,99829.0,0.06277213]
[1733939917436,0.22334,99830.0,99829.0,0.06277213]
[1733939917614,0.30064845,99830.0,99829.0,0.06277213]
[1733939917819,0.32364845,99830.0,99829.0,0.06277213]
[1733939918229,0.32364845,99830.0,99789.0,0.100211]
[1733939918230,0.200396,99802.0,99765.0,0.17819862]
[1733939918429,0.15,99759.0,99751.0,0.0004]
[1733939918661,0.15,99758.0,99751.0,0.0004]
[1733939919128,0.12681689,99758.0,99753.0,0.100246]
[1733939919286,0.12681689,99771.0,99766.0,0.100234]
[1733939919539,0.01063267,99780.0,99774.0,0.100225]
[1733939919540,0.12681689,99780.0,99774.0,0.100225]
[1733939919704,0.12681689,99794.0,99761.0,0.15]
[1733939919915,0.12681689,99791.0,99765.0,0.15]
[1733939920174,0.12681689,99794.0,99766.0,0.10131061]
[1733939920383,0.12681689,99794.0,99791.0,0.100209]
[1733939920576,0.12681689,99794.0,99770.0,0.10023]
[1733939920814,0.00016442,99780.0,99771.0,0.10131056]
[1733939921235,0.00016442,99780.0,99779.0,0.100221]
[1733939921869,0.00016442,99780.0,99779.0,0.20052945]
[1733939921870,0.00216442,99780.0,99779.0,0.20052945]
[1733939922092,0.20031,99845.0,99781.0,0.15]
[1733939922309,0.20031,99845.0,99759.0,0.1]
[1733939922310,0.01980584,99808.0,99807.0,0.100193]
[1733939922527,0.00016622,99846.0,99807.0,0.100193]
[1733939922528,0.00016622,99846.0,99842.0,0.100158]
[1733939922734,0.00016622,99846.0,99844.0,0.100156]
[1733939922970,0.0825,99899.0,99845.0,0.00100139]
[1733939923181,0.01969968,99889.0,99857.0,0.100142]
[1733939923391,0.37304511,99880.0,99839.0,0.10016]
[1733939923599,0.200257,99872.0,99823.0,0.15]
[1733939923801,0.15302194,99887.0,99823.0,0.15100159]
[1733939924006,0.15302194,99887.0,99807.0,0.0006]
[1733939924007,0.10030845,99886.0,99832.0,0.15]
[1733939924218,0.10030845,99886.0,99862.0,0.100137]
[1733939924430,0.20023,99885.0,99858.0,0.100141]
[1733939924633,0.200241,99880.0,99850.0,0.100149]
[1733939924809,0.10030845,99873.0,99859.0,0.00481406]
[1733939925012,0.10030845,99873.0,99842.0,0.002]
[1733939925216,0.200273,99864.0,99842.0,0.102158]
[1733939925378,0.10030845,99863.0,99848.0,0.100151]
[1733939925580,0.10030845,99863.0,99848.0,0.200303]
[1733939925777,0.00963996,99851.0,99850.0,0.10015]
[1733939926001,0.04771781,99851.0,99850.0,0.10015]
[1733939926257,0.07531039,99851.0,99850.0,0.10015]
[1733939926571,0.05250528,99851.0,99850.0,0.10015]
[1733939926799,0.07190752,99851.0,99843.0,0.200313]
[1733939927038,0.07190752,99851.0,99825.0,0.3]
[1733939927039,0.04282138,99850.0,99827.0,0.15]
[1733939927256,0.0131785,99849.0,99841.0,0.100158]
[1733939927450,0.00594853,99849.0,99841.0,0.100158]
[1733939927662,0.00594853,99849.0,99837.0,0.100162]
[1733939927868,0.10030845,99848.0,99823.0,0.100177]
[1733939928024,0.10030845,99848.0,99830.0,0.100169]
[1733939928251,0.00721309,99847.0,99817.0,0.15]
[1733939928460,0.00721309,99850.0,99843.0,0.100156]
[1733939928615,0.00116625,99851.0,99843.0,0.100156]
[1733939928808,0.00593246,99850.0,99823.0,0.00100171]
[1733939929015,0.00593246,99850.0,99825.0,0.15]
[1733939929214,0.00116625,99851.0,99844.0,0.100155]
[1733939929420,0.001,99849.0,99844.0,0.100155]
[1733939929871,0.001,99850.0,99845.0,0.100154]
[1733939930269,0.001,99850.0,99845.0,0.200309]
[1733939930496,0.00016625,99851.0,99792.0,0.100207]
[1733939930669,0.10752154,99850.0,99821.0,0.15]
[1733939930897,0.10752154,99850.0,99766.0,0.1]
[1733939930898,0.200306,99847.0,99828.0,0.100172]
[1733939931110,0.03121309,99849.0,99806.0,0.2324]
[1733939931111,0.023,99845.0,99840.0,8.6e-05]
[1733939931371,0.30783354,99844.0,99840.0,8.6e-05]
[1733939931595,0.200316,99842.0,99840.0,8.6e-05]
[1733939931824,0.10750425,99841.0,99840.0,8.6e-05]
[1733939932309,0.00719679,99841.0,99840.0,8.6e-05]
[1733939932537,0.0661,99869.0,99840.0,8.6e-05]
[1733939932538,0.00819602,99850.0,99840.0,8.6e-05]
[1733939932768,0.10030845,99849.0,99840.0,8.6e-05]
[1733939933003,0.01041639,99861.0,99840.0,8.6e-05]
[1733939933004,0.01041639,99861.0,99840.0,0.102245]
[1733939933244,0.200292,99854.0,99840.0,0.102245]
[1733939933463,0.200292,99854.0,99840.0,0.002086]